bitfinex/quotes_ETHUSD_20250404
["timestamp","ask_amount","ask_price","bid_price","bid_amount"]
[1743741482768,5.58596,1790.2,1790.1,0.8202]
[1743741483073,8.71748928,1790.2,1790.1,0.05]
[1743741483762,7.239031,1790.2,1790.1,0.05]
[1743741486704,5.58596,1790.2,1790.1,0.05]
[1743741487043,10.94496,1790.2,1790.1,0.05]
[1743741487543,5.58596,1790.2,1790.1,0.05]
[1743741487744,10.94496,1790.2,1790.1,0.05]
[1743741488680,5.359,1790.2,1790.1,0.05]
[1743741489278,5.359,1790.2,1790.1,0.8029]
[1743741489855,5.359,1790.3,1790.1,0.8029]
[1743741490547,2.58716089,1790.6,1790.2,6.33871]
[1743741490548,5.58486,1790.6,1790.2,6.33871]
[1743741490771,5.359,1790.5,1790.3,6.33852]
[1743741492180,5.359,1790.5,1790.3,0.7529]
[1743741492679,5.359,1790.5,1790.3,6.33851]
[1743741492977,5.359,1790.5,1790.3,0.7529]
[1743741494549,5.359,1790.5,1790.3,6.33854]
[1743741495254,5.359,1790.5,1790.3,0.7529]
[1743741496152,5.359,1790.5,1790.3,6.3385]
[1743741496352,5.359,1790.5,1790.3,7.530931]
[1743741497545,10.94411,1790.5,1790.3,0.7529]
[1743741498747,5.58534,1790.4,1790.3,0.7529]
[1743741498951,5.58534,1790.4,1790.1,11.97528]
[1743741499350,5.58534,1790.4,1790.1,0.8029]
[1743741499671,5.58596,1790.2,1790.1,0.05]
[1743741499870,6.786365,1790.2,1790.1,0.05]
[1743741505359,5.58596,1790.2,1790.1,0.05]
[1743741509703,10.84569356,1790.2,1790.1,0.05]
[1743741509995,19.06106052,1790.2,1790.1,0.05]
[1743741510693,18.26594734,1790.2,1790.1,0.05]
[1743741510894,17.71594734,1790.2,1790.1,0.05]
[1743741511068,25.96270007,1790.2,1790.1,0.05]
[1743741511469,26.38051755,1790.2,1790.1,0.05]
[1743741511664,27.48950398,1790.2,1790.1,0.05]
[1743741516871,28.03950398,1790.2,1790.1,0.05]
[1743741517699,5.58784,1789.6,1789.4,0.8213]
[1743741518412,11.17585,1789.6,1789.4,0.8213]
[1743741518622,5.58784,1789.6,1789.4,0.8213]
[1743741519421,11.17584,1789.6,1789.4,0.8213]
[1743741520231,5.58784,1789.6,1789.4,0.8213]
[1743741520822,5.58815,1789.5,1789.4,0.8213]
[1743741521825,5.58815,1789.5,1789.2,5.58895]
[1743741522028,5.58815,1789.5,1789.2,6.36015]
[1743741523013,5.58784,1789.6,1789.3,5.58868]
[1743741523225,5.58784,1789.6,1789.2,6.36015]
[1743741523378,5.58816,1789.5,1789.2,6.36015]
[1743741524024,5.58784,1789.6,1789.2,6.36014]
[1743741524228,11.17597,1789.6,1789.2,6.36014]
[1743741524517,5.58784,1789.6,1789.2,11.94908]
[1743741524702,11.17583,1789.6,1789.2,11.17788]
[1743741524908,5.58784,1789.6,1789.3,6.34891]
[1743741525922,11.17584,1789.6,1789.3,6.34891]
[1743741526105,5.58784,1789.6,1789.3,7.542695]
[1743741526584,11.17586,1789.6,1789.3,7.542695]
[1743741526790,11.17586,1789.6,1789.3,1.953985]
[1743741526978,5.58819,1789.5,1789.3,0.7602]
[1743741528307,5.58784,1789.6,1789.3,6.34881]
[1743741528515,5.58784,1789.6,1789.3,11.93749]
[1743741529101,5.58784,1789.6,1789.3,6.34881]
[1743741534386,11.17591,1789.6,1789.3,0.7602]
[1743741534814,5.58817,1789.5,1789.3,0.7602]
[1743741535889,11.17596,1789.6,1789.3,0.7602]
[1743741536193,5.77438469,1789.7,1789.4,5.58846]
[1743741536194,11.36198469,1789.7,1789.4,5.58846]
[1743741536739,16.94964469,1789.7,1789.4,5.58846]
[1743741536912,11.36198469,1789.7,1789.4,5.58846]
[1743741537095,5.359,1789.6,1789.4,5.58846]
[1743741538884,5.359,1789.6,1789.3,11.93738]
[1743741539091,10.94689,1789.6,1789.3,6.34872]
[1743741540316,10.94689,1789.6,1789.3,11.93739]
[1743741540501,5.359,1789.6,1789.4,5.58846]
[1743741540702,5.359,1789.6,1789.4,11.1768]
[1743741541019,5.58726,1789.8,1789.6,0.7844]
[1743741541221,11.59698,1789.9,1789.6,6.37224]
[1743741541524,11.59698,1789.9,1789.7,5.5875]
[1743741541525,5.359,1789.8,1789.7,5.5875]
[1743741541730,6.01,1789.9,1789.7,5.58743]
[1743741541897,11.369,1789.9,1789.7,11.17483]
[1743741542219,11.369,1789.9,1789.7,5.5874]
[1743741542722,11.369,1789.9,1789.7,11.17478]
[1743741543106,11.369,1789.9,1789.7,5.58738]
[1743741543513,6.01,1789.9,1789.8,6.37161]
[1743741543716,5.58569,1790.3,1790.0,5.58652]
[1743741544033,5.58569,1790.3,1790.0,6.37083]
[1743741544418,10.94369,1790.3,1790.0,6.37083]
[1743741545036,6.39804,1790.5,1790.1,5.58616]
[1743741545243,5.358,1790.4,1790.2,11.17177]
[1743741545437,5.358,1790.4,1790.3,6.36978]
[1743741546219,10.94349,1790.4,1790.1,0.7844]
[1743741546405,10.94349,1790.4,1789.6,2.58693521]
[1743741546406,5.58606,1790.2,1789.9,6.37119]
[1743741546814,6.44600378,1790.3,1789.9,11.95798]
[1743741547014,7.1061439,1790.3,1790.0,5.58657]
[1743741547246,5.58575,1790.3,1790.0,5.58657]
[1743741547831,11.1716,1790.3,1789.9,11.95799]
[1743741548215,5.58608,1790.2,1789.9,5.58679]
[1743741549138,11.17169,1790.3,1789.9,11.17353]
[1743741549824,5.586,1790.2,1789.9,5.58674]
[1743741550236,5.58575,1790.3,1789.9,11.17351]
[1743741550541,11.17159,1790.3,1789.9,11.17351]
[1743741550747,13.16454252,1790.3,1789.9,5.58674]
[1743741551118,5.58598,1790.2,1789.9,5.58674]
[1743741551817,7.57870252,1790.3,1789.9,11.17351]
[1743741552018,7.57870252,1790.3,1789.9,5.58674]
[1743741552220,5.58597,1790.2,1789.9,5.58674]
[1743741552654,5.58597,1790.2,1789.9,11.1735]
[1743741552849,13.16465252,1790.3,1789.9,11.17354]
[1743741553053,13.16451252,1790.3,1789.9,11.17354]
[1743741553222,7.57870252,1790.3,1790.0,5.58653]
[1743741553557,7.57870252,1790.3,1790.0,6.37853]
[1743741554650,17.34183,1790.4,1790.0,11.96502]
[1743741555146,16.52883,1790.4,1790.0,11.96502]
[1743741555650,5.58508,1790.5,1790.1,11.17237]
[1743741555849,5.357,1790.3,1790.1,5.58614]
[1743741556720,5.357,1790.3,1790.1,11.17227]
[1743741557755,5.357,1790.3,1790.1,5.58613]
[1743741558256,5.357,1790.3,1790.1,11.17227]
[1743741558956,5.357,1790.3,1790.2,5.58596]
[1743741559262,5.356,1790.4,1790.2,11.17179]
[1743741559460,5.356,1790.4,1790.2,5.58583]
[1743741559628,10.94147,1790.4,1790.1,5.58621]
[1743741560357,10.94147,1790.4,1790.1,11.17236]
[1743741560661,5.356,1790.4,1790.1,11.17236]
[1743741561229,0.7832,1790.3,1790.1,5.58615]
[1743741561441,10.94136,1790.4,1790.1,5.58615]
[1743741561940,10.94136,1790.4,1790.1,11.1723]
[1743741562135,5.356,1790.4,1790.2,5.58591]
[1743741567555,10.94134,1790.4,1790.1,5.58615]
[1743741567754,12.593977,1790.4,1790.1,5.58615]
[1743741568054,18.937307,1790.4,1790.1,5.58615]
[1743741568256,13.351777,1790.4,1790.1,5.58615]
[1743741568456,13.351777,1790.4,1790.1,11.17232]
[1743741568457,12.593977,1790.4,1790.1,11.17232]
[1743741568759,5.356,1790.4,1790.2,5.58591]
[1743741570162,6.01,1790.6,1790.3,6.39565]
[1743741570357,5.355,1790.5,1790.4,5.58523]
[1743741570740,5.355,1790.5,1790.3,11.9813]
[1743741570932,5.355,1790.5,1790.3,7.59378]
[1743741571555,10.94015,1790.5,1790.2,6.39591]
[1743741571743,10.94015,1790.5,1790.2,11.98174]
[1743741572062,10.94015,1790.5,1790.2,11.9817]
[1743741572468,5.355,1790.5,1790.2,11.9817]
[1743741573784,5.355,1790.5,1790.3,5.58563]
[1743741573978,10.93973,1790.6,1790.3,5.58563]
[1743741575284,5.355,1790.6,1790.3,11.17117]
[1743741575442,5.355,1790.6,1790.3,12.369287]
[1743741576746,10.93973,1790.6,1790.3,6.783657]
[1743741576947,10.93973,1790.6,1790.3,5.58554]
[1743741577285,5.355,1790.6,1790.3,11.17107]
[1743741577489,10.93974,1790.6,1790.3,5.58552]
[1743741577788,10.93974,1790.6,1790.3,11.17108]
[1743741578637,5.355,1790.6,1790.5,0.77]
[1743741581103,5.355,1790.6,1790.3,11.94115]
[1743741581856,5.355,1790.6,1790.4,5.58532]
[1743741582901,10.93976,1790.6,1790.3,6.35556]
[1743741583206,5.58507,1790.5,1790.2,5.58592]
[1743741583366,5.58507,1790.5,1790.2,11.17174]
[1743741583766,18.177199,1790.6,1790.2,11.17174]
[1743741584321,12.592179,1790.6,1790.3,5.58555]
[1743741584486,12.592179,1790.6,1790.3,11.17107]
[1743741584808,5.354,1790.6,1790.5,5.5849]
[1743741585402,5.354,1790.6,1790.4,11.94062]
[1743741585575,5.354,1790.6,1790.4,6.35531]
[1743741586504,5.354,1790.6,1790.4,6.35521]
[1743741587302,5.354,1790.6,1790.4,11.94044]
[1743741589419,5.354,1790.6,1790.4,0.77]
[1743741589584,10.93872,1790.6,1790.3,5.58556]
[1743741590379,5.354,1790.6,1790.4,5.58531]
[1743741591284,0.7529,1790.5,1790.2,5.58589]
[1743741591483,5.58565,1790.3,1790.0,6.3565]
[1743741591683,5.58565,1790.3,1790.0,6.35646]
[1743741592586,5.58565,1790.3,1790.0,5.58646]
[1743741593123,5.58565,1790.3,1790.0,11.17293]
[1743741593727,5.354,1790.2,1790.0,11.17293]
[1743741594023,5.58656,1790.1,1789.7,6.33915]
[1743741594223,5.58656,1790.1,1789.7,6.33912]
[1743741594412,5.58656,1790.1,1789.8,5.58721]
[1743741594924,11.17299,1790.1,1789.8,5.58721]
[1743741595120,5.58643,1790.1,1789.8,5.58721]
[1743741596224,5.58643,1790.1,1789.8,5.58708]
[1743741596431,12.793795,1790.2,1789.8,11.17416]
[1743741596727,11.69983,1790.2,1789.9,5.58687]
[1743741597187,12.11309068,1790.2,1789.9,5.58687]
[1743741598692,11.69983,1790.2,1789.9,5.58687]
[1743741603033,17.28606,1790.2,1789.8,5.58708]
[1743741603238,5.58682,1790.0,1789.6,5.58769]
[1743741603542,5.5869,1789.9,1789.6,5.58769]
[1743741604296,6.39662,1790.0,1789.6,5.58769]
[1743741604501,11.98338,1790.0,1789.6,11.17539]
[1743741604714,11.98338,1790.0,1789.6,11.1754]
[1743741605148,5.58692,1789.9,1789.6,5.58769]
[1743741605438,5.58628,1790.1,1789.7,6.3513]
[1743741605614,5.58628,1790.1,1789.7,6.35123]
[1743741605814,11.17283,1790.1,1789.7,6.35123]
[1743741606415,5.58659,1790.0,1789.7,6.35123]
[1743741607142,11.17337,1790.0,1789.7,0.7638]
[1743741607303,12.290707,1790.0,1789.7,0.7638]
[1743741607949,6.703927,1790.0,1789.7,0.7638]
[1743741608937,12.290677,1790.0,1789.7,6.35131]
[1743741609241,5.58699,1789.9,1789.7,0.7638]
[1743741609544,5.58699,1789.9,1789.6,6.3914]
[1743741609721,5.58699,1789.9,1789.6,11.97909]
[1743741609932,5.58699,1789.9,1789.6,6.39129]
[1743741610242,5.58699,1789.9,1789.6,11.97901]
[1743741610545,6.703927,1790.0,1789.6,11.97901]
[1743741610719,5.58659,1790.0,1789.6,11.97901]
[1743741610904,11.17333,1790.0,1789.6,11.97901]
[1743741611443,11.17333,1790.0,1789.6,11.97902]
[1743741611644,11.17333,1790.0,1789.6,6.39129]
[1743741611948,5.58692,1789.9,1789.6,6.39129]
[1743741612853,10.94135,1789.8,1789.5,0.8036]
[1743741613020,5.58766,1789.7,1789.4,5.58838]
[1743741613201,11.17533,1789.7,1789.4,5.58838]
[1743741613406,11.17533,1789.7,1789.3,11.98102]
[1743741613704,5.58766,1789.7,1789.4,5.58843]
[1743741614247,5.58766,1789.7,1789.4,5.58831]
[1743741614842,5.58766,1789.7,1789.4,11.17667]
[1743741615050,5.58766,1789.7,1789.4,5.58831]
[1743741615344,5.58766,1789.7,1789.3,11.98106]
[1743741615546,11.17537,1789.7,1789.3,11.98106]
[1743741615704,11.17537,1789.7,1789.3,6.39233]
[1743741616405,11.17534,1789.7,1789.3,11.98096]
[1743741617146,5.58766,1789.7,1789.4,5.58839]
[1743741617448,5.58766,1789.7,1789.4,5.58837]
[1743741617816,11.17536,1789.7,1789.4,5.58837]
[1743741618030,5.58766,1789.7,1789.4,5.58837]
[1743741618257,5.354,1789.6,1789.4,5.58837]
[1743741618575,5.354,1789.6,1789.4,11.17671]
[1743741618784,5.354,1789.6,1789.4,5.58834]
[1743741619146,5.354,1789.6,1789.3,6.39231]
[1743741619147,5.354,1789.6,1789.3,6.39227]
[1743741619369,5.354,1789.6,1789.4,5.58835]
[1743741619761,5.354,1789.6,1789.4,11.17667]
[1743741620579,5.354,1789.6,1789.4,5.58832]
[1743741620944,5.354,1789.6,1789.3,6.39232]
[1743741621145,10.94185,1789.6,1789.3,6.39232]
[1743741621384,12.11284705,1789.6,1789.3,6.39232]
[1743741621583,17.70085705,1789.6,1789.3,5.58872]
[1743741622282,12.11284705,1789.6,1789.3,5.58872]
[1743741622581,5.354,1789.6,1789.4,5.58845]
[1743741622950,5.58905,1789.3,1789.1,0.862]
[1743741623153,5.58851,1789.4,1789.1,5.63939]
[1743741623345,5.58851,1789.4,1789.1,5.63931]
[1743741624296,5.58851,1789.4,1789.1,5.63926]
[1743741624887,10.94188,1789.6,1789.3,5.58869]
[1743741625192,10.94228,1789.5,1789.2,6.40104]
[1743741626921,17.31217,1789.5,1789.1,5.63932]
[1743741627094,17.31223,1789.5,1789.1,5.63925]
[1743741627297,11.72378,1789.5,1789.1,5.63925]
[1743741627457,17.31209,1789.5,1789.2,5.58898]
[1743741628902,11.72378,1789.5,1789.2,5.58898]
[1743741629799,6.1355,1789.5,1789.3,5.58876]
[1743741629989,11.72369,1789.5,1789.2,11.17793]
[1743741630600,11.72369,1789.5,1789.2,5.58895]
[1743741630813,11.72369,1789.5,1789.2,11.17793]
[1743741630982,6.1355,1789.5,1789.2,11.17793]
[1743741631196,5.58786,1789.6,1789.3,6.40074]
[1743741631391,5.354,1789.5,1789.3,6.40074]
[1743741631596,5.354,1789.5,1789.4,0.36410454]
[1743741633186,5.354,1789.5,1789.2,6.40095]
[1743741633392,10.94222,1789.5,1789.3,0.37074897]
[1743741633587,16.53059,1789.5,1789.3,0.37074897]
[1743741633797,0.7815,1789.4,1789.1,5.63926]
[1743741634116,6.37027,1789.3,1789.2,0.37124279]
[1743741634425,5.58909,1789.2,1789.1,0.05]
[1743741634783,5.58909,1789.2,1789.1,0.42178693]
[1743741635201,6.0128854,1789.2,1789.1,0.42178693]
[1743741644465,15.42612061,1789.2,1789.1,0.42178693]
[1743741644641,18.22306682,1789.2,1789.1,0.42178693]
[1743741644840,22.0833206,1789.2,1789.1,0.05]
[1743741654845,26.02806682,1789.2,1789.1,0.05]
[1743741656982,20.67306682,1789.2,1789.1,0.05]
[1743741657169,26.02806682,1789.2,1789.1,0.05]
[1743741657370,25.21176682,1789.2,1789.1,0.05]
[1743741662006,12.45849378,1789.5,1789.1,6.39781]
[1743741662149,5.355,1789.4,1789.2,5.96312917]
[1743741662349,10.94355,1789.4,1789.1,11.98707]
[1743741662547,5.355,1789.4,1789.2,0.37408372]
[1743741662760,5.355,1789.4,1789.1,11.98707]
[1743741662959,5.355,1789.4,1789.2,0.37408372]
[1743741663298,5.355,1789.4,1789.1,11.98707]
[1743741663611,5.355,1789.4,1789.2,0.37408372]
[1743741663768,5.355,1789.4,1789.1,6.39776]
[1743741663769,16.53222,1789.4,1789.1,6.39776]
[1743741663969,10.94353,1789.4,1789.2,0.37408372]
[1743741664182,10.94353,1789.4,1789.1,6.39789]
[1743741664414,10.94353,1789.4,1789.2,0.37408372]
[1743741664701,10.94353,1789.4,1789.1,6.39777]
[1743741665008,10.94353,1789.4,1789.2,0.37408372]
[1743741665207,10.94353,1789.4,1789.1,6.39777]
[1743741665407,10.94353,1789.4,1789.2,0.37408372]
[1743741665608,16.53222,1789.4,1789.1,6.39777]
[1743741665785,16.53222,1789.4,1789.2,0.37408372]
[1743741666107,5.58886,1789.3,1789.1,0.8085]
[1743741668813,11.17787,1789.3,1789.1,0.8085]
[1743741669019,5.58886,1789.3,1789.1,0.8085]
[1743741669521,11.17794,1789.3,1789.1,0.8085]
[1743741669815,8.17602521,1789.2,1789.1,0.05]
[1743741670028,13.57862289,1789.2,1789.1,0.05]
[1743741671546,13.57862289,1789.2,1789.1,0.4229935]
[1743741671707,19.58862289,1789.2,1789.1,0.05]
[1743741671906,19.58862289,1789.2,1789.1,0.4229935]
[1743741672131,19.58862289,1789.2,1789.1,0.05]
[1743741672331,19.58862289,1789.2,1789.1,0.4229935]
[1743741672510,19.58862289,1789.2,1789.1,0.05]
[1743741672712,19.58862289,1789.2,1789.1,0.4229935]
[1743741676631,20.93692289,1789.2,1789.1,0.4229935]
[1743741676830,20.93692289,1789.2,1789.1,0.05]
[1743741678375,20.07666911,1789.2,1789.1,0.05]
[1743741686551,24.63136911,1789.2,1789.1,0.05]
[1743741688972,24.08136911,1789.2,1789.1,0.05]
[1743741689627,24.08136911,1789.2,1789.1,0.42467819]
[1743741690242,24.08136911,1789.2,1789.1,0.05]
[1743741692830,21.4944339,1789.2,1789.1,0.05]
[1743741693032,5.353,1789.2,1789.1,0.8666]
[1743741693253,5.353,1789.2,1789.1,6.83070335]
[1743741693882,5.353,1789.2,1789.1,1.24130335]
[1743741696387,10.94209,1789.2,1789.1,1.24130335]
[1743741697283,5.353,1789.2,1789.1,1.24130335]
[1743741702103,5.58888,1789.3,1789.1,1.24130335]
[1743741702390,5.352,1789.2,1789.1,1.24130335]
[1743741706277,5.352,1789.2,1789.1,0.42470335]
[1743741706479,12.594083,1789.2,1789.1,0.42470335]
[1743741707153,10.94109,1789.2,1789.1,0.42470335]
[1743741707461,5.352,1789.2,1789.1,0.42470335]
[1743741713406,5.352,1789.2,1789.1,1.23500335]
[1743741716597,5.352,1789.2,1789.1,6.82440335]
[1743741716967,5.351,1789.3,1789.2,5.58905]
[1743741717194,5.351,1789.3,1789.1,12.41368335]
[1743741717397,5.351,1789.3,1789.2,0.37335443]
[1743741717772,5.351,1789.3,1789.1,6.44958]
[1743741717973,10.93984,1789.3,1789.2,0.37335443]
[1743741718174,12.592683,1789.3,1789.2,0.37335443]
[1743741718476,12.592683,1789.3,1789.2,0.37330418]
[1743741718677,12.592683,1789.3,1789.1,0.8603]
[1743741718910,12.592683,1789.3,1789.2,0.37330418]
[1743741719117,7.003843,1789.3,1789.1,0.05]
[1743741719408,5.351,1789.3,1789.1,0.05]
[1743741719623,5.351,1789.3,1789.2,0.37330418]
[1743741719905,5.351,1789.3,1789.1,0.05]
[1743741720110,5.351,1789.3,1789.2,0.37330418]
[1743741720315,5.351,1789.3,1789.1,0.05]
[1743741720511,5.351,1789.3,1789.2,0.37330418]
[1743741720701,5.351,1789.3,1789.1,0.05]
[1743741720893,5.351,1789.3,1789.2,0.37330418]
[1743741721215,5.351,1789.3,1789.1,5.63939]
[1743741721588,5.351,1789.3,1789.2,0.37330418]
[1743741721971,5.351,1789.3,1789.1,5.63939]
[1743741722202,5.351,1789.3,1789.1,11.22868]
[1743741722413,5.351,1789.3,1789.2,0.37330418]
[1743741722717,5.351,1789.3,1789.1,5.63929]
[1743741723016,5.35,1789.3,1789.2,1.12710418]
[1743741723218,11.59791,1789.6,1789.2,1.12710418]
[1743741723219,5.35,1789.4,1789.3,5.58873]
[1743741723423,5.35,1789.6,1789.4,5.58842]
[1743741723794,5.35,1789.6,1789.5,1.12539658]
[1743741728026,5.349,1789.7,1789.5,6.71351658]
[1743741728824,5.349,1789.7,1789.5,1.12539658]
[1743741730195,10.93654,1789.7,1789.5,1.12539658]
[1743741731234,5.349,1789.7,1789.5,1.12539658]
[1743741732049,5.349,1789.7,1789.5,6.71344658]
[1743741733550,5.349,1789.7,1789.5,1.12539658]
[1743741735749,5.349,1789.7,1789.5,6.71342658]
[1743741743460,1.69185378,1790.0,1789.5,1.12539658]
[1743741743761,6.01,1790.1,1789.9,5.58678]
[1743741743955,6.01,1790.2,1790.0,0.36751994]
[1743741744155,5.348,1790.1,1790.0,5.95407994]
[1743741744335,5.348,1790.1,1790.0,0.36751994]
[1743741744538,5.348,1790.1,1789.9,5.58678]
[1743741745154,5.348,1790.1,1789.8,11.9507]
[1743741745461,5.348,1790.1,1789.9,0.36801338]
[1743741745824,5.348,1790.1,1789.8,13.29373374]
[1743741746059,5.348,1790.1,1790.0,0.36751994]
[1743741746249,5.348,1790.1,1789.9,0.36801338]
[1743741746449,5.348,1790.1,1790.0,0.36751994]
[1743741746872,5.348,1790.1,1789.9,5.5869]
[1743741747035,5.348,1790.1,1790.0,0.36751994]
[1743741749261,10.93428,1790.1,1790.0,0.36751994]
[1743741749461,10.93428,1790.1,1789.8,6.36355]
[1743741749680,10.93428,1790.1,1790.0,0.36751994]
[1743741750066,10.93428,1790.1,1789.8,6.36355]
[1743741750367,10.93428,1790.1,1789.9,0.36801338]
[1743741750536,10.93428,1790.1,1789.8,6.36351]
[1743741750734,10.93428,1790.1,1789.9,0.36801338]
[1743741750935,10.93428,1790.1,1789.8,11.95059]
[1743741751359,10.93428,1790.1,1789.9,0.36801338]
[1743741751537,10.93428,1790.1,1789.8,13.145639]
[1743741751736,10.93428,1790.1,1789.9,0.36801338]
[1743741751961,10.93428,1790.1,1789.8,13.145639]
[1743741752851,10.93428,1790.1,1789.9,0.36801338]
[1743741753258,10.93428,1790.1,1789.8,13.145639]
[1743741753568,10.93428,1790.1,1789.9,0.36801338]
[1743741753769,10.93428,1790.1,1789.8,13.145639]
[1743741753931,10.93428,1790.1,1789.9,0.36801338]
[1743741754137,10.93428,1790.1,1789.8,13.145639]
[1743741754454,10.93428,1790.1,1789.9,0.36801338]
[1743741754844,10.93428,1790.1,1789.8,13.145639]
[1743741755046,10.93428,1790.1,1790.0,0.36751994]
[1743741755257,10.93428,1790.1,1789.9,0.36801338]
[1743741755463,10.93428,1790.1,1789.8,6.36348]
[1743741755464,10.93428,1790.1,1790.0,0.36751994]
[1743741755673,13.268434,1790.1,1790.0,0.36751994]
[1743741755961,18.854954,1790.1,1790.0,0.36751994]
[1743741756169,18.854954,1790.1,1789.8,0.7764]
[1743741756465,16.5208,1790.1,1789.9,0.36801338]
[1743741756771,16.5208,1790.1,1789.8,0.7764]
[1743741757068,13.46448742,1790.0,1789.9,0.36801338]
[1743741757271,14.81974862,1790.0,1789.9,0.36801338]
[1743741757460,5.58773,1789.7,1789.3,6.36506]
[1743741757634,5.345,1789.6,1789.3,6.36506]
[1743741757839,5.58815,1789.5,1789.4,0.33947687]
[1743741758240,11.17645,1789.5,1789.1,12.00503]
[1743741758570,11.1765,1789.5,1789.1,12.00503]
[1743741758777,5.58815,1789.5,1789.2,0.34046446]
[1743741758982,5.58815,1789.5,1789.2,5.92939446]
[1743741759383,11.17649,1789.5,1789.2,5.92939446]
[1743741759540,5.58815,1789.5,1789.2,5.92939446]
[1743741760056,11.59066357,1789.5,1789.2,5.92939446]
[1743741760536,11.59066357,1789.5,1789.2,0.34046446]
[1743741760738,11.59066357,1789.5,1789.1,13.35339674]
[1743741760954,11.59066357,1789.5,1789.2,0.34046446]
[1743741761144,11.59066357,1789.5,1789.1,13.35339674]
[1743741761354,6.00235357,1789.5,1789.2,5.92952446]
[1743741761536,11.59070357,1789.5,1789.2,0.34046446]
[1743741761734,6.00235357,1789.5,1789.1,13.35335674]
[1743741761967,11.59066357,1789.5,1789.2,0.34046446]
[1743741762261,11.59067357,1789.5,1789.1,13.35335674]
[1743741762466,6.00235357,1789.5,1789.3,0.33997064]
[1743741762668,6.00235357,1789.5,1789.2,7.26482013]
[1743741762830,6.00235357,1789.5,1789.4,0.33947687]
[1743741763036,6.00235357,1789.5,1789.3,0.33997064]
[1743741763247,6.00235357,1789.5,1789.4,0.33947687]
[1743741763573,6.00235357,1789.5,1789.2,6.92435567]
[1743741763741,6.00235357,1789.5,1789.3,0.33997064]
[1743741764142,11.59072357,1789.5,1789.3,0.33997064]
[1743741764342,6.00235357,1789.5,1789.3,0.33997064]
[1743741764543,11.59068357,1789.5,1789.3,0.33997064]
[1743741765043,6.00235357,1789.5,1789.3,0.33997064]
[1743741767395,11.59071357,1789.5,1789.3,0.33997064]
[1743741767544,6.00235357,1789.5,1789.3,0.33997064]
[1743741768388,11.59065357,1789.5,1789.3,0.33997064]
[1743741768603,13.36533893,1789.5,1789.3,0.33997064]
[1743741768948,13.36534893,1789.5,1789.3,0.33997064]
[1743741769364,7.77703893,1789.5,1789.1,12.00503]
[1743741769559,6.00235357,1789.5,1789.2,5.93059996]
[1743741769766,6.00235357,1789.5,1789.2,5.93047996]
[1743741769978,0.41420357,1789.5,1789.2,11.51943996]
[1743741770191,17.33205,1789.6,1789.2,11.51945996]
[1743741770377,17.33205,1789.6,1789.2,5.93047996]
[1743741770688,0.7681,1789.8,1789.3,0.7817]
[1743741770888,11.59699,1789.9,1789.6,11.17552]
[1743741771095,5.346,1789.7,1789.6,11.17552]
[1743741771374,5.346,1789.7,1789.6,5.58771]
[1743741772384,5.346,1789.7,1789.5,6.36971]
[1743741772551,5.346,1789.7,1789.5,5.58801]
[1743741773182,5.346,1789.7,1789.5,11.17601]
[1743741773382,5.346,1789.7,1789.5,12.371781]
[1743741773583,5.346,1789.7,1789.5,12.371821]
[1743741773781,5.346,1789.7,1789.5,12.371831]
[1743741774080,5.346,1789.7,1789.5,6.783771]
[1743741774256,5.346,1789.7,1789.5,5.588]
[1743741774456,5.346,1789.7,1789.5,11.176]
[1743741775188,5.345,1789.7,1789.6,5.5878]
[1743741775365,5.345,1789.7,1789.6,11.17552]
[1743741775966,5.345,1789.7,1789.6,11.99142]
[1743741776288,5.345,1789.7,1789.6,13.190562]
[1743741776585,5.345,1789.7,1789.6,13.53065986]
[1743741777798,5.345,1789.7,1789.6,7.94285986]
[1743741778799,5.345,1789.7,1789.6,2.35513986]
[1743741778962,5.345,1789.7,1789.6,1.15599786]
[1743741779299,5.345,1789.7,1789.6,0.34009786]
[1743741779469,11.73872,1789.7,1789.6,0.34009786]
[1743741779799,17.32645,1789.7,1789.6,0.34009786]
[1743741779958,17.32645,1789.7,1789.3,11.1775]
[1743741780159,11.73872,1789.7,1789.4,5.92948522]
[1743741780361,11.73872,1789.7,1789.4,5.92942522]
[1743741780902,11.73872,1789.7,1789.4,11.51779522]
[1743741781402,6.1512,1789.7,1789.4,11.51779522]
[1743741781703,5.345,1789.7,1789.5,11.1762]
[1743741781902,5.345,1789.7,1789.6,5.58784]
[1743741782057,5.345,1789.7,1789.6,5.92751061]
[1743741783492,5.345,1789.7,1789.6,0.33967061]
[1743741784599,5.345,1789.7,1789.6,5.92751061]
[1743741785178,5.345,1789.7,1789.6,0.33967061]
[1743741787570,5.345,1789.7,1789.6,5.92751061]
[1743741787770,5.345,1789.7,1789.6,0.33967061]
[1743741789114,5.345,1789.7,1789.6,5.92751061]
[1743741790105,5.345,1789.7,1789.6,0.33967061]
[1743741791617,5.345,1789.7,1789.6,5.92751061]
[1743741792814,5.345,1789.7,1789.6,0.33967061]
[1743741794010,5.345,1789.7,1789.6,5.92751061]
[1743741802313,5.345,1789.7,1789.6,7.07906267]
[1743741802479,5.345,1789.7,1789.6,7.86146267]
[1743741809118,5.345,1789.7,1789.6,0.33967061]
[1743741809426,0.7645,1789.5,1789.2,5.58896]
[1743741809838,0.7645,1789.5,1789.3,0.32143112]
[1743741809992,6.35268,1789.5,1789.3,0.32143112]
[1743741811829,11.94104,1789.5,1789.3,0.32143112]
[1743741812022,6.35268,1789.5,1789.3,0.32143112]
[1743741812585,6.76857779,1789.5,1789.3,0.32143112]